bitfinex-derivatives/quotes_BTCF0:USTF0_20250510
["timestamp","ask_amount","ask_price","bid_price","bid_amount"]
[1746910999261,0.003,103270.0,103260.0,1.8784846]
[1746911000156,0.2749554,103280.0,103270.0,0.1926574]
[1746911000461,0.72961124,103290.0,103280.0,0.1936386]
[1746911000462,0.20789714,103290.0,103280.0,0.1936386]
[1746911000663,0.20789714,103290.0,103280.0,1.32669811]
[1746911000851,0.20789714,103290.0,103280.0,1.54569811]
[1746911001255,0.20789714,103290.0,103280.0,1.80852696]
[1746911001565,0.20789714,103290.0,103280.0,1.8055269]
[1746911001761,0.20789714,103290.0,103280.0,1.80552674]
[1746911002069,0.21089714,103290.0,103280.0,1.80652674]
[1746911002567,0.21089714,103290.0,103280.0,1.80652672]
[1746911002863,0.007,103290.0,103280.0,2.96616672]
[1746911003257,0.007,103290.0,103280.0,2.96516672]
[1746911003457,0.007,103290.0,103280.0,2.96516659]
[1746911003965,0.004,103290.0,103280.0,2.97852984]
[1746911004168,0.004,103290.0,103280.0,2.97952984]
[1746911004960,0.005,103290.0,103280.0,2.97952984]
[1746911005271,0.005,103290.0,103280.0,2.97650352]
[1746911005569,0.005,103290.0,103280.0,2.97952981]
[1746911006065,0.004,103290.0,103280.0,2.98052981]
[1746911006468,0.004,103290.0,103280.0,2.97750352]
[1746911009470,0.004,103290.0,103280.0,3.33830352]
[1746911011661,0.004,103290.0,103280.0,3.33730352]
[1746911011861,0.004,103290.0,103280.0,3.34030352]
[1746911012062,0.004,103290.0,103280.0,3.34230352]
[1746911014768,0.004,103290.0,103280.0,3.47014352]
[1746911014967,0.0359,103290.0,103280.0,3.47014352]
[1746911015167,0.0359,103290.0,103280.0,3.30414352]
[1746911017370,0.2472,103290.0,103280.0,3.06885711]
[1746911017570,0.2801,103290.0,103280.0,3.06885711]
[1746911017872,0.2801,103290.0,103280.0,3.19122352]
[1746911019173,0.2801,103290.0,103280.0,3.19110352]
[1746911021780,0.2801,103290.0,103280.0,3.06873711]
[1746911021980,0.2801,103290.0,103280.0,3.03511711]
[1746911022277,0.4461,103290.0,103280.0,3.03511711]
[1746911022473,0.4461,103290.0,103280.0,3.06611711]
[1746911022970,0.4461,103290.0,103280.0,3.18848352]
[1746911024784,0.4461,103290.0,103280.0,3.06611711]
[1746911025281,0.4461,103290.0,103280.0,3.18848352]
[1746911025468,0.4461,103290.0,103280.0,3.06611711]
[1746911026081,0.2801,103290.0,103280.0,3.06611711]
[1746911026281,0.2801,103290.0,103280.0,3.18848352]
[1746911026667,0.2801,103290.0,103280.0,3.06611711]
[1746911026872,0.2801,103290.0,103280.0,3.18848352]
[1746911027074,0.4461,103290.0,103280.0,3.18848352]
[1746911027581,0.4461,103290.0,103280.0,3.19151007]
[1746911029785,0.4461,103290.0,103280.0,3.18848352]
[1746911032072,0.6121,103290.0,103280.0,3.18848352]
[1746911032277,0.4461,103290.0,103280.0,3.18848352]
[1746911032685,0.4461,103290.0,103280.0,2.82768352]
[1746911034185,0.2801,103290.0,103280.0,3.18848352]
[1746911035885,0.2801,103290.0,103280.0,2.9437507]
[1746911036086,0.4461,103290.0,103280.0,3.18848352]
[1746911037083,0.4461,103290.0,103280.0,2.90300352]
[1746911037289,0.6397199,103290.0,103280.0,2.6582707]
[1746911037490,0.6397199,103290.0,103280.0,3.03411711]
[1746911038184,0.6397199,103290.0,103280.0,2.9117507]
[1746911038385,0.6397199,103290.0,103280.0,3.03411711]
[1746911039191,0.4461,103290.0,103280.0,2.31251711]
[1746911039396,0.76208631,103290.0,103280.0,2.0762321]
[1746911039693,0.76208631,103290.0,103280.0,2.2698707]
[1746911040194,0.6397199,103290.0,103280.0,2.2698707]
[1746911042093,0.6397199,103290.0,103280.0,1.1102307]
[1746911042593,0.6397199,103290.0,103280.0,0.7494307]
[1746911044099,0.4461,103290.0,103280.0,0.94179711]
[1746911044390,0.2019,103290.0,103280.0,1.67766352]
[1746911044595,0.17,103290.0,103280.0,1.67766352]
[1746911044790,0.17,103290.0,103280.0,1.68069003]
[1746911045096,0.004,103290.0,103280.0,1.84669003]
[1746911046308,0.004,103290.0,103280.0,1.84669]
[1746911049094,0.004,103290.0,103280.0,1.89521609]
[1746911051700,0.004,103290.0,103280.0,2.01758233]
[1746911051898,0.21855932,103310.0,103300.0,0.1936011]
[1746911052094,0.51855932,103310.0,103300.0,1.29401392]
[1746911052291,0.51855932,103310.0,103300.0,1.55461392]
[1746911052495,0.51855932,103310.0,103300.0,1.6514334]
[1746911052902,0.51855932,103310.0,103300.0,1.52906699]
[1746911053100,0.51955932,103310.0,103300.0,1.52906699]
[1746911053297,0.52055932,103310.0,103300.0,1.52906699]
[1746911053498,0.52055932,103310.0,103300.0,1.6514334]
[1746911054198,0.52055932,103310.0,103300.0,1.4854334]
[1746911055005,0.52055932,103310.0,103300.0,1.36306699]
[1746911057999,0.52055932,103310.0,103300.0,1.4854334]
[1746911058197,0.52055932,103310.0,103300.0,1.6514334]
[1746911059109,0.52055932,103310.0,103300.0,1.4854334]
[1746911059297,0.3972,103310.0,103300.0,1.4854334]
[1746911060099,0.3972,103310.0,103300.0,1.36306699]
[1746911061613,0.002,103310.0,103300.0,1.4954334]
[1746911061800,0.002,103310.0,103300.0,1.8562334]
[1746911062305,0.0325,103310.0,103300.0,1.8562334]
[1746911062710,0.002,103310.0,103300.0,2.1062334]
[1746911063210,0.002,103310.0,103300.0,2.2722334]
[1746911063909,0.002,103310.0,103300.0,2.39459981]
[1746911064299,0.002,103310.0,103300.0,2.2722334]
[1746911064498,0.12735932,103320.0,103300.0,2.20099871]
[1746911064703,0.12735932,103320.0,103310.0,0.79911522]
[1746911064904,0.14802749,103330.0,103320.0,0.1935636]
[1746911065107,0.14702749,103330.0,103320.0,3.07110283]
[1746911065307,0.14702749,103330.0,103320.0,2.80079965]
[1746911065516,0.14702749,103330.0,103320.0,3.26789888]
[1746911065711,0.20974316,103350.0,103340.0,0.1935262]
[1746911065903,0.20974316,103350.0,103340.0,1.4844062]
[1746911066109,0.20974316,103350.0,103340.0,1.6088062]
[1746911066304,0.24154316,103350.0,103340.0,1.95032101]
[1746911066709,0.20974316,103350.0,103340.0,1.95032101]
[1746911066915,0.21074316,103350.0,103340.0,1.70558819]
[1746911067115,0.37674316,103350.0,103340.0,1.95032101]
[1746911068020,0.37674316,103350.0,103340.0,1.95996021]
[1746911068429,0.37674316,103350.0,103340.0,1.71522739]
[1746911068727,0.171,103350.0,103340.0,1.78522739]
[1746911069026,0.171,103350.0,103340.0,2.31996021]
[1746911069526,0.171,103350.0,103340.0,2.0898139]
[1746911069724,0.6884,103380.0,103370.0,0.19347]
[1746911070025,0.0361,103380.0,103370.0,1.40507]
[1746911070223,0.0361,103380.0,103370.0,1.46967]
[1746911070418,0.0361,103380.0,103370.0,1.56643326]
[1746911070623,0.0361,103380.0,103370.0,1.81116608]
[1746911070924,0.0381,103380.0,103370.0,1.37643326]
[1746911071227,0.0381,103380.0,103370.0,1.54343326]
[1746911071525,0.0361,103380.0,103370.0,1.54343326]
[1746911071727,0.0361,103380.0,103370.0,1.54543326]
[1746911072116,0.2021,103380.0,103370.0,1.37943326]
[1746911072624,0.2021,103380.0,103370.0,1.56512139]
[1746911072823,0.2221,103380.0,103370.0,1.37943326]
[1746911073023,0.2336,103380.0,103370.0,1.37943326]
[1746911073921,0.2336,103380.0,103370.0,1.01863326]
[1746911074124,0.2336,103380.0,103370.0,0.98773326]
[1746911074324,0.2336,103380.0,103370.0,1.53422139]
[1746911074528,0.2336,103380.0,103370.0,1.34853326]
[1746911074921,0.2336,103380.0,103370.0,1.53422139]
[1746911075231,0.2336,103380.0,103370.0,1.37853326]
[1746911075828,0.4636,103380.0,103370.0,1.34723326]
[1746911076632,0.4636,103380.0,103370.0,1.53292139]
[1746911076829,0.4636,103380.0,103370.0,1.37603326]
[1746911077024,0.4636,103380.0,103370.0,1.37503326]
[1746911077224,0.4646,103380.0,103370.0,1.37503326]
[1746911077420,0.4646,103380.0,103370.0,1.56072139]
[1746911077722,0.4646,103380.0,103370.0,1.34503326]
[1746911077930,0.4646,103380.0,103370.0,1.53072139]
[1746911078132,0.4646,103380.0,103370.0,1.34503326]
[1746911078324,0.4646,103380.0,103370.0,1.53072139]
[1746911078525,0.4646,103380.0,103370.0,1.49992139]
[1746911078727,0.6580513,103380.0,103370.0,1.31423326]
[1746911079034,0.4646,103380.0,103370.0,1.28183326]
[1746911079234,0.4646,103380.0,103370.0,1.28383326]
[1746911079430,1.02942756,103380.0,103370.0,0.272]
[1746911079631,1.1145873,103380.0,103370.0,0.2728]
[1746911079829,1.1145873,103380.0,103370.0,0.053]
[1746911080135,1.30027543,103380.0,103370.0,0.051]
[1746911080336,1.30027543,103380.0,103350.0,0.2135028]
[1746911080337,0.1934887,103360.0,103350.0,0.2135028]
[1746911080540,1.08997683,103360.0,103350.0,0.26]
[1746911080735,0.9681887,103360.0,103350.0,0.4535074]
[1746911081130,1.1341887,103360.0,103350.0,0.4535074]
[1746911081739,1.1341887,103360.0,103350.0,0.26]
[1746911081740,2.00427683,103360.0,103350.0,0.26]
[1746911081934,0.1935074,103350.0,103340.0,0.61873372]
[1746911082134,0.4274074,103350.0,103340.0,0.96035402]
[1746911082329,0.5934074,103350.0,103340.0,0.96035402]
[1746911082529,0.77909553,103350.0,103340.0,0.76683752]
[1746911082833,1.33989553,103350.0,103340.0,0.14]
[1746911083136,1.1542074,103350.0,103340.0,0.3335262]
[1746911083339,1.1552074,103350.0,103340.0,0.3375262]
[1746911083529,1.1877074,103350.0,103340.0,0.3375262]
[1746911083836,1.1867074,103350.0,103340.0,0.3335262]
[1746911085432,1.1867074,103350.0,103340.0,0.34775882]
[1746911086026,0.8259074,103350.0,103340.0,0.34775882]
[1746911086228,1.1867074,103350.0,103340.0,0.34775882]
[1746911088032,0.8259074,103350.0,103340.0,0.34775882]
[1746911088237,0.4559074,103350.0,103340.0,0.34775882]
[1746911088438,0.4559074,103350.0,103340.0,0.40855882]
[1746911088639,0.4559074,103350.0,103340.0,0.44115882]
[1746911089340,0.4959074,103350.0,103340.0,0.41115882]
[1746911091836,0.6759074,103350.0,103340.0,0.41115882]
[1746911095540,1.22239553,103350.0,103340.0,0.15423262]
[1746911095740,1.75484766,103350.0,103340.0,0.01]
[1746911096044,1.75484766,103350.0,103320.0,0.0303]
[1746911096045,0.1935449,103330.0,103320.0,0.0303]
[1746911096237,1.07003303,103330.0,103320.0,0.03]
[1746911096434,1.16433303,103330.0,103320.0,0.03]
[1746911097037,0.9786449,103330.0,103320.0,0.03]
[1746911097236,1.33033303,103330.0,103320.0,0.03]
[1746911098538,1.1456449,103330.0,103320.0,0.038]
[1746911099046,1.1456449,103330.0,103320.0,0.08245123]
[1746911099346,1.33133303,103330.0,103320.0,0.08245123]
[1746911100047,1.1456449,103330.0,103320.0,0.08245123]
[1746911100242,1.33133303,103330.0,103320.0,0.08245123]
[1746911100450,1.1456449,103330.0,103320.0,0.05245123]
[1746911100748,1.33133303,103330.0,103320.0,0.05245123]
[1746911100952,1.1456449,103330.0,103320.0,0.05245123]
[1746911101245,1.33133303,103330.0,103320.0,0.05245123]
[1746911101444,1.1456449,103330.0,103320.0,0.24601483]
[1746911101645,0.9056449,103330.0,103320.0,0.30901483]
[1746911101842,1.1356449,103330.0,103320.0,0.30901483]
[1746911103540,1.32133303,103330.0,103320.0,0.30901483]
[1746911103740,1.1356449,103330.0,103320.0,0.30901483]
[1746911103948,1.32133303,103330.0,103320.0,0.30901483]
[1746911104655,1.32133303,103330.0,103320.0,0.11545123]
[1746911105045,1.32133303,103330.0,103320.0,0.10555123]
[1746911105753,1.77891303,103330.0,103320.0,0.03]
[1746911106142,2.21460116,103330.0,103320.0,0.03]
[1746911106346,0.1935824,103310.0,103300.0,0.0325]
[1746911106541,1.56606453,103310.0,103300.0,0.07]
[1746911106854,0.1936199,103290.0,103280.0,0.063]
[1746911107040,1.2452199,103290.0,103280.0,0.07567764]
[1746911107246,1.69300803,103290.0,103280.0,0.07567764]
[1746911107547,1.5073199,103290.0,103280.0,0.26931624]
[1746911107747,1.69300803,103290.0,103280.0,0.07567764]
[1746911107948,1.5073199,103290.0,103280.0,0.26931624]
[1746911108148,1.5073199,103290.0,103280.0,0.29991624]
[1746911108351,0.4239199,103290.0,103280.0,0.33991624]
[1746911108652,1.0147199,103290.0,103280.0,0.29991624]
[1746911109648,1.0167199,103290.0,103280.0,0.30691624]
[1746911111357,1.0167199,103290.0,103280.0,0.30491624]
[1746911111549,1.0167199,103290.0,103280.0,0.31943901]
[1746911111745,1.20240803,103290.0,103280.0,0.12580041]
[1746911111951,1.23320803,103290.0,103280.0,0.05537764]
[1746911112158,0.1936574,103270.0,103260.0,0.00397037]
[1746911112350,0.4936574,103270.0,103260.0,0.11397037]
[1746911112549,0.77154553,103270.0,103260.0,0.11397037]
[1746911112750,0.77154553,103270.0,103260.0,0.17777037]
[1746911113147,0.93754553,103270.0,103260.0,0.37144647]
[1746911114049,1.29834553,103270.0,103260.0,0.17777037]
[1746911114252,1.29834553,103270.0,103260.0,0.11397037]
[1746911114552,1.39518554,103270.0,103260.0,0.11397037]
[1746911114949,1.21049741,103270.0,103260.0,0.11697037]
[1746911115150,1.21149741,103270.0,103260.0,0.11997037]
[1746911115350,1.39718554,103270.0,103260.0,0.15167037]
[1746911115653,1.21149741,103270.0,103260.0,0.15167037]
[1746911115856,1.1146574,103270.0,103260.0,0.34534647]
[1746911116055,1.1146574,103270.0,103260.0,0.37694647]
[1746911116853,1.7990574,103270.0,103260.0,0.37694647]
[1746911117254,1.7682574,103270.0,103260.0,0.37694647]
[1746911117559,1.4074574,103270.0,103260.0,0.37694647]
[1746911117757,1.59314553,103270.0,103260.0,0.37694647]
[1746911117957,1.4074574,103270.0,103260.0,0.37694647]
[1746911118359,1.95394553,103270.0,103260.0,0.37694647]
[1746911118557,1.7682574,103270.0,103260.0,0.37694647]
[1746911119162,1.4074574,103270.0,103260.0,0.37694647]
[1746911119354,1.7682574,103270.0,103260.0,0.37694647]
[1746911119756,1.4074574,103270.0,103260.0,0.37694647]
[1746911121962,1.59314553,103270.0,103260.0,0.37694647]
[1746911122263,1.95394553,103270.0,103260.0,0.37694647]
[1746911122462,1.7682574,103270.0,103260.0,0.37694647]
[1746911124355,1.7682574,103270.0,103260.0,0.39208554]
[1746911124967,1.59314553,103270.0,103260.0,0.39208554]
[1746911125266,1.95394553,103270.0,103260.0,0.39208554]
[1746911125456,1.7682574,103270.0,103260.0,0.39208554]
[1746911127271,1.95394553,103270.0,103260.0,0.39208554]
[1746911128570,1.95394553,103270.0,103260.0,0.16680944]
[1746911128974,0.1936949,103250.0,103240.0,0.14807674]
[1746911129267,1.12018303,103250.0,103240.0,0.19837674]
[1746911129456,1.18648303,103250.0,103240.0,0.23107674]
[1746911130166,1.18648303,103250.0,103240.0,0.42479034]
[1746911130167,1.5275949,103250.0,103240.0,0.42479034]
[1746911130361,1.71328303,103250.0,103240.0,0.42479034]
[1746911130869,1.71428303,103250.0,103240.0,0.43179034]
[1746911131169,1.5295949,103250.0,103240.0,0.43479034]
[1746911131572,1.5345949,103250.0,103240.0,0.42679034]
[1746911131869,1.5345949,103250.0,103240.0,0.2787136]
[1746911132063,0.8089949,103250.0,103240.0,0.2777136]
[1746911132265,0.3666949,103250.0,103240.0,1.16205872]
[1746911132472,0.3666949,103250.0,103240.0,0.97637059]
[1746911132671,0.3666949,103250.0,103240.0,1.16205872]
[1746911133071,0.3636949,103250.0,103240.0,0.97537059]
[1746911133374,0.3666949,103250.0,103240.0,1.17555559]
[1746911133563,0.3666949,103250.0,103240.0,1.17455559]
[1746911133762,0.3616949,103250.0,103240.0,1.17555559]
[1746911133965,0.3626949,103250.0,103240.0,1.39555559]
[1746911134166,0.3626949,103250.0,103240.0,1.39455559]
[1746911134167,0.3606949,103250.0,103240.0,1.39455559]
[1746911134367,0.3616949,103250.0,103240.0,1.3579442]
[1746911134570,0.3616949,103250.0,103240.0,1.54363233]
[1746911134874,0.3616949,103250.0,103240.0,1.2609442]
[1746911135269,0.61865265,103250.0,103240.0,1.1509442]
[1746911136069,0.61865265,103250.0,103240.0,1.33663233]
[1746911137178,0.5761949,103250.0,103240.0,1.33663233]
[1746911139076,0.5761949,103250.0,103240.0,1.53406799]
[1746911140181,0.5421949,103250.0,103240.0,1.53406799]
[1746911140683,0.5421949,103250.0,103240.0,1.34837986]
[1746911141182,0.3761949,103250.0,103240.0,1.34837986]
[1746911141672,0.3761949,103250.0,103240.0,1.53406799]
[1746911141875,0.3761949,103250.0,103240.0,1.33663233]
[1746911142070,0.5421949,103250.0,103240.0,1.12586359]
[1746911142371,0.5421949,103250.0,103240.0,1.11376359]
[1746911142979,0.5421949,103250.0,103240.0,1.0988442]
[1746911144383,0.3761949,103250.0,103240.0,1.48196799]
[1746911145079,0.5421949,103250.0,103240.0,1.48196799]
[1746911145474,0.5421949,103250.0,103240.0,1.55196799]
[1746911146789,0.5421949,103250.0,103240.0,1.35453233]
[1746911146986,0.5421949,103250.0,103240.0,1.36929434]
[1746911149783,0.5421949,103250.0,103240.0,1.18360621]
[1746911152482,0.5732949,103250.0,103240.0,1.18360621]
[1746911154390,0.5732949,103250.0,103240.0,1.03552947]
[1746911155985,0.5732949,103250.0,103240.0,0.96552947]
[1746911157286,1.34978303,103250.0,103240.0,0.27025888]
[1746911157486,1.38078303,103250.0,103240.0,0.27025888]
[1746911157883,1.38078303,103250.0,103240.0,0.25576201]
[1746911158188,1.47763903,103250.0,103240.0,0.25576201]
[1746911158389,1.47663903,103250.0,103240.0,0.25576201]
[1746911158590,1.47763903,103250.0,103240.0,0.02676201]
[1746911159189,1.2919509,103250.0,103240.0,0.02676201]
[1746911159396,1.47763903,103250.0,103240.0,0.01676201]
[1746911161496,1.38078303,103250.0,103240.0,0.01676201]
[1746911162792,0.8342949,103250.0,103240.0,0.23047561]
[1746911162998,0.5642949,103250.0,103240.0,0.65567561]
[1746911163199,0.3982949,103250.0,103240.0,0.49237561]
[1746911163785,0.7590949,103250.0,103240.0,0.49237561]
[1746911164000,0.3672949,103250.0,103240.0,0.49237561]
[1746911164192,0.4232949,103250.0,103240.0,0.32637561]
[1746911164997,0.1985,103250.0,103240.0,0.4732326]
[1746911165194,0.3616949,103250.0,103240.0,1.01972073]
[1746911166414,0.168,103250.0,103240.0,1.04927059]
[1746911166607,0.168,103250.0,103240.0,1.47307872]
[1746911167211,0.168,103250.0,103240.0,1.58307872]
[1746911167909,0.3616949,103250.0,103240.0,1.58307872]
[1746911168306,0.1956949,103250.0,103240.0,1.58307872]
[1746911168803,0.1956949,103250.0,103240.0,1.39739059]
[1746911169307,0.3616949,103250.0,103240.0,1.58307872]
[1746911169500,0.168,103250.0,103240.0,1.58307872]
[1746911170406,0.002,103250.0,103240.0,1.58307872]
[1746911173897,0.002,103250.0,103240.0,1.39739059]
[1746911174102,0.002,103250.0,103240.0,1.58307872]
[1746911174906,0.002,103250.0,103240.0,1.39739059]
[1746911175298,0.002,103250.0,103240.0,1.58307872]
[1746911178109,0.168,103250.0,103240.0,1.58307872]
[1746911178504,0.1999,103250.0,103240.0,1.58307872]
[1746911179611,0.1999,103250.0,103240.0,1.39739059]
[1746911179911,0.1999,103250.0,103240.0,1.58307872]
[1746911180114,0.0339,103250.0,103240.0,1.56307872]
[1746911181608,0.2275949,103250.0,103240.0,1.56307872]
[1746911181811,0.5475949,103250.0,103240.0,1.23739059]
[1746911182010,0.5795949,103250.0,103240.0,1.23739059]
[1746911182212,0.7455949,103250.0,103240.0,1.23739059]
[1746911182410,0.93128303,103250.0,103240.0,0.80555699]
[1746911182710,1.32468303,103250.0,103240.0,0.032]
[1746911182908,1.42153903,103250.0,103240.0,0.04678551]
[1746911183107,1.42153903,103250.0,103240.0,0.01678551]
[1746911184109,1.67153903,103250.0,103240.0,0.01678551]
[1746911184303,1.42153903,103250.0,103240.0,0.01678551]
[1746911191715,1.32468303,103250.0,103240.0,0.01678551]
[1746911192311,0.96388303,103250.0,103240.0,0.01678551]
[1746911192520,1.68548303,103250.0,103240.0,0.01678551]
[1746911193120,1.4997949,103250.0,103240.0,0.01678551]
[1746911193421,1.68548303,103250.0,103240.0,0.01678551]
[1746911200214,1.68548303,103250.0,103240.0,0.002]
[1746911203515,1.68948303,103250.0,103240.0,0.001]
[1746911203715,0.1937136,103240.0,103230.0,0.06687152]
[1746911204022,1.15530173,103240.0,103230.0,0.06687152]
[1746911204225,1.32130173,103240.0,103230.0,0.08188006]
[1746911204413,1.32130173,103240.0,103230.0,0.27561246]
[1746911205722,1.32430173,103240.0,103230.0,0.27561246]
[1746911205920,1.32730173,103240.0,103230.0,0.27561246]
[1746911206831,2.01170173,103240.0,103230.0,0.08188006]
[1746911208111,1.7940136,103240.0,103230.0,0.30561246]
[1746911208519,1.7609136,103240.0,103230.0,0.30561246]
[1746911209127,1.5949136,103240.0,103230.0,0.30561246]
[1746911209520,1.3919136,103240.0,103230.0,0.30561246]
[1746911209825,1.0331136,103240.0,103230.0,0.30561246]
[1746911210016,1.1931136,103240.0,103230.0,0.30561246]
[1746911210212,1.1911136,103240.0,103230.0,0.30661246]
[1746911210724,1.2212136,103240.0,103230.0,0.30661246]
[1746911212121,1.5820136,103240.0,103230.0,0.30661246]
[1746911212821,1.2212136,103240.0,103230.0,0.30661246]
[1746911213126,1.5820136,103240.0,103230.0,0.30661246]
[1746911213427,1.2212136,103240.0,103230.0,0.30661246]
[1746911213617,1.5820136,103240.0,103230.0,0.30661246]
[1746911213821,1.2212136,103240.0,103230.0,0.30661246]
[1746911214022,1.5519136,103240.0,103230.0,0.30661246]
[1746911214527,1.1911136,103240.0,103230.0,0.30661246]
[1746911216820,0.7674,103240.0,103230.0,0.96310059]
[1746911217123,0.6874,103240.0,103230.0,1.51612696]
[1746911217326,0.6874,103240.0,103230.0,2.18781509]
[1746911217521,0.6874,103240.0,103230.0,2.00212696]
[1746911219028,0.6874,103240.0,103230.0,2.33398642]
[1746911219328,0.6874,103240.0,103230.0,2.29678642]
[1746911221226,0.003,103240.0,103230.0,2.29678642]
[1746911223227,1.3189918,103270.0,103260.0,0.1936761]
[1746911223431,1.3475101,103270.0,103260.0,0.2036761]
[1746911223629,1.53319823,103270.0,103260.0,0.3022761]
[1746911224128,1.69919823,103270.0,103260.0,0.3022761]
[1746911225632,1.70519823,103270.0,103260.0,0.3022761]
[1746911225822,1.71119823,103270.0,103260.0,0.3022761]
[1746911226132,1.54519823,103270.0,103260.0,0.3022761]
[1746911227332,1.71119823,103270.0,103260.0,0.3022761]
[1746911228730,2.07199823,103270.0,103260.0,0.3022761]
[1746911228921,2.07199823,103270.0,103260.0,0.01]
[1746911230234,2.07099823,103270.0,103260.0,0.011]
[1746911230438,2.06899823,103270.0,103260.0,0.012]
[1746911233637,2.06899823,103270.0,103260.0,0.02657178]
[1746911233826,2.06899823,103270.0,103260.0,0.01657178]
[1746911234828,2.06899823,103270.0,103260.0,0.002]
[1746911235432,1.8833101,103270.0,103260.0,0.002]
[1746911235634,2.06899823,103270.0,103260.0,0.01656813]
[1746911235835,2.0055114,103270.0,103260.0,0.01656813]
[1746911238443,1.8833101,103270.0,103260.0,0.01656813]
[1746911238640,1.8833101,103270.0,103260.0,0.2156761]
[1746911238839,2.0055114,103270.0,103260.0,0.3092761]
[1746911239138,1.4740918,103270.0,103260.0,0.4314774]
[1746911239537,1.2340918,103270.0,103260.0,0.4314774]
[1746911239735,1.2340918,103270.0,103260.0,0.3092761]
[1746911240644,1.4740918,103270.0,103260.0,0.3092761]
[1746911241344,0.7943,103270.0,103260.0,0.99303953]
[1746911241547,0.9879574,103270.0,103260.0,0.80691433]
[1746911241739,0.9179574,103270.0,103260.0,0.44611433]
[1746911241935,0.9979574,103270.0,103260.0,0.44611433]
[1746911243539,0.9979574,103270.0,103260.0,0.99303953]
[1746911243746,0.9979574,103270.0,103260.0,0.80691433]
[1746911245042,0.9979574,103270.0,103260.0,0.99303953]
[1746911245242,0.9979574,103270.0,103260.0,1.15903953]
[1746911245651,0.3135574,103270.0,103260.0,1.15903953]
[1746911245947,0.3135574,103270.0,103260.0,0.97291433]
[1746911246149,0.3135574,103270.0,103260.0,0.81670673]
[1746911246449,0.2335574,103270.0,103260.0,0.81670673]
[1746911247044,0.2335574,103270.0,103260.0,0.80691433]
[1746911247752,0.2335574,103270.0,103260.0,0.44611433]
[1746911248256,0.2335574,103270.0,103260.0,0.45587483]
[1746911248954,0.2335574,103270.0,103260.0,0.44611433]
[1746911250354,0.2295574,103270.0,103260.0,0.44511433]
[1746911250555,0.2325574,103270.0,103260.0,0.44611433]
[1746911251056,0.2275574,103270.0,103260.0,0.44511433]
[1746911251353,0.2305574,103270.0,103260.0,0.44611433]
[1746911251749,0.3405574,103270.0,103260.0,0.65515433]
[1746911252759,0.3405574,103270.0,103260.0,0.44611433]
[1746911258562,0.3105574,103270.0,103260.0,0.80691433]
[1746911259256,0.3437574,103270.0,103260.0,0.80691433]
[1746911261055,0.3105574,103270.0,103260.0,0.80691433]
[1746911261757,0.3105574,103270.0,103260.0,0.92905883]
[1746911263657,0.3105574,103270.0,103260.0,0.56825883]
[1746911264264,0.3105574,103270.0,103260.0,0.44611433]
[1746911264657,0.4327019,103270.0,103260.0,0.44611433]
[1746911264865,0.7227019,103270.0,103260.0,0.3492761]
[1746911265166,0.9507019,103270.0,103260.0,0.3492761]
[1746911267760,1.3115019,103270.0,103260.0,0.062]
[1746911269358,1.3115019,103270.0,103260.0,0.2556761]
[1746911269668,1.9959019,103270.0,103260.0,0.2556761]
[1746911270762,1.8737574,103270.0,103260.0,0.2556761]
[1746911270960,1.9959019,103270.0,103260.0,0.2556761]
[1746911271767,1.9959019,103270.0,103260.0,0.2156761]
[1746911273064,1.6351019,103270.0,103260.0,0.2156761]
[1746911273267,1.9959019,103270.0,103260.0,0.2156761]
[1746911274069,1.9959019,103270.0,103260.0,0.2472761]
[1746911278266,1.8737574,103270.0,103260.0,0.2472761]
[1746911278775,1.9959019,103270.0,103260.0,0.2791761]
[1746911280280,1.8436574,103270.0,103260.0,0.4413206]
[1746911281267,1.6776574,103270.0,103260.0,0.4413206]
[1746911281572,1.6776574,103270.0,103260.0,0.3191761]
[1746911283967,1.6776574,103270.0,103260.0,0.2791761]
[1746911287676,1.7998019,103270.0,103260.0,0.2791761]
[1746911288468,1.6776574,103270.0,103260.0,0.2791761]
[1746911288673,1.7998019,103270.0,103260.0,0.2791761]
[1746911288977,1.4390019,103270.0,103260.0,0.2791761]
[1746911289178,1.9658019,103270.0,103260.0,0.2791761]
[1746911289880,1.6050019,103270.0,103260.0,0.2791761]
[1746911290177,1.7998019,103270.0,103260.0,0.2791761]
[1746911290379,1.6457574,103270.0,103260.0,0.2891761]
[1746911290977,0.6904,103270.0,103260.0,1.1842651]
[1746911291277,0.6904,103270.0,103260.0,1.74710333]
[1746911291479,0.6904,103270.0,103260.0,1.62495883]
[1746911291779,0.6904,103270.0,103260.0,1.81415883]
[1746911291978,0.8840574,103270.0,103260.0,1.69201433]
[1746911292585,0.8840574,103270.0,103260.0,1.81415883]
[1746911293275,0.8840574,103270.0,103260.0,1.69201433]
[1746911293482,0.8840574,103270.0,103260.0,1.81415883]
[1746911293781,0.8840574,103270.0,103260.0,1.87811267]
[1746911294484,0.8830574,103270.0,103260.0,1.87811267]
[1746911294674,0.6884,103270.0,103260.0,1.87811267]
[1746911295872,1.36767563,103300.0,103270.0,0.0484103]
[1746911296078,0.2264199,103290.0,103280.0,0.59085754]
[1746911296279,0.2264199,103290.0,103280.0,0.6554592]
[1746911296475,0.2464199,103290.0,103280.0,0.84155754]
[1746911297376,0.2464199,103290.0,103280.0,0.94793109]
[1746911297377,0.2136199,103290.0,103280.0,0.94793109]
[1746911297578,0.1936199,103290.0,103280.0,0.76183275]
[1746911297781,0.2264199,103290.0,103280.0,0.76183275]
[1746911298478,0.2314199,103290.0,103280.0,0.76283275]
[1746911298679,0.2364199,103290.0,103280.0,0.76383275]
[1746911299184,0.2364199,103290.0,103280.0,0.77853985]
[1746911300186,0.2364199,103290.0,103280.0,1.13933985]
[1746911300880,0.2364199,103290.0,103280.0,1.32543819]
[1746911301786,0.2364199,103290.0,103280.0,1.13933985]
[1746911302185,0.2364199,103290.0,103280.0,1.32543819]
[1746911303190,0.2364199,103290.0,103280.0,1.13933985]
[1746911303484,0.2364199,103290.0,103280.0,1.32543819]
[1746911305383,0.0428,103290.0,103280.0,1.32543819]
[1746911305585,0.3608,103310.0,103280.0,0.81498459]
[1746911305894,0.0328,103310.0,103300.0,1.24649634]
[1746911306087,0.0328,103310.0,103300.0,1.476398]
[1746911306282,0.0328,103310.0,103300.0,1.75899634]
[1746911306481,0.0328,103310.0,103300.0,1.85581582]
[1746911307083,0.0398,103310.0,103300.0,1.85581582]
[1746911307885,0.0328,103310.0,103300.0,1.85681582]
[1746911308192,0.0328,103310.0,103300.0,1.69181582]
[1746911309186,0.0328,103310.0,103300.0,1.50571748]
[1746911309390,0.0328,103310.0,103300.0,1.69181582]
[1746911310591,0.0328,103310.0,103300.0,1.38101582]
[1746911311581,0.0328,103310.0,103300.0,1.19491748]
[1746911311885,0.0328,103310.0,103300.0,1.38101582]
[1746911312597,0.0328,103310.0,103300.0,1.19491748]
[1746911312786,0.2263824,103310.0,103300.0,1.19491748]